bitfinex/quotes_SOLUSD_20250317
["timestamp","ask_amount","ask_price","bid_price","bid_amount"]
[1742194406461,0.03,128.47,128.44,22.83720374]
[1742194406630,16.64980374,128.46,128.44,6.1874]
[1742194406952,16.64980374,128.45,128.42,8.4701]
[1742194407640,24.43460374,128.46,128.42,8.4701]
[1742194407945,16.64980374,128.45,128.42,8.4701]
[1742194410054,16.64980374,128.44,128.42,6.84]
[1742194411535,24.43450374,128.46,128.42,6.84]
[1742194411855,16.64980374,128.46,128.42,6.84]
[1742194412156,24.43460374,128.46,128.42,6.84]
[1742194412358,16.64980374,128.45,128.42,6.84]
[1742194413357,24.43460374,128.46,128.42,6.84]
[1742194413552,16.64980374,128.46,128.42,14.6267]
[1742194413755,0.03,128.47,128.43,16.64980374]
[1742194414257,0.03,128.47,128.44,16.64980374]
[1742194414461,0.03,128.47,128.44,18.25600374]
[1742194415348,0.03,128.47,128.45,7.7851]
[1742194416736,0.03,128.47,128.44,313.6062]
[1742194416935,16.64980374,128.46,128.44,9.3919]
[1742194417143,16.67980374,128.47,128.44,9.3919]
[1742194418165,0.03,128.47,128.44,9.3919]
[1742194418855,16.67980374,128.47,128.44,1.6062]
[1742194420263,16.67980374,128.47,128.44,9.3918]
[1742194420446,0.03,128.47,128.44,9.3918]
[1742194421146,16.67980374,128.47,128.44,1.6062]
[1742194421567,0.03,128.47,128.44,1.6062]
[1742194421767,16.67980374,128.47,128.44,1.6062]
[1742194422657,16.64980374,128.46,128.44,1.6062]
[1742194424858,24.43430374,128.46,128.42,14.6269]
[1742194425174,16.64980374,128.46,128.42,14.6269]
[1742194425469,24.46410374,128.47,128.42,31.27670374]
[1742194426771,24.46410374,128.47,128.42,14.6269]
[1742194427265,24.46410374,128.47,128.42,7.7869]
[1742194428772,16.64980374,128.46,128.42,7.7869]
[1742194429153,24.46410374,128.47,128.42,7.7869]
[1742194429467,16.64980374,128.46,128.42,7.7869]
[1742194429651,7.8143,128.47,128.41,326.6966]
[1742194429652,16.64980374,128.45,128.41,326.6966]
[1742194430352,16.64980374,128.45,128.41,14.6966]
[1742194430758,16.64980374,128.45,128.41,22.4841]
[1742194431072,18.40027203,128.45,128.41,22.4841]
[1742194431369,10.61517203,128.45,128.41,14.6966]
[1742194431673,10.61517203,128.45,128.41,22.484]
[1742194431875,10.61517203,128.45,128.41,14.6966]
[1742194432368,10.61517203,128.45,128.41,22.484]
[1742194432762,10.61517203,128.45,128.41,15.644]
[1742194433152,18.40047203,128.45,128.41,15.644]
[1742194433349,10.61517203,128.44,128.41,7.8566]
[1742194433553,10.61517203,128.44,128.41,15.6441]
[1742194433769,10.61517203,128.45,128.41,15.6441]
[1742194435075,18.40037203,128.45,128.41,15.6441]
[1742194435274,18.40037203,128.45,128.41,7.8566]
[1742194435473,10.61517203,128.43,128.41,7.8566]
[1742194436874,18.40177203,128.43,128.41,6.2504]
[1742194437076,10.61517203,128.42,128.41,6.2504]
[1742194438554,10.61517203,128.42,128.41,0.063]
[1742194439279,18.40207203,128.42,128.41,0.063]
[1742194442081,42.46068812,128.46,128.41,0.063]
[1742194442266,10.61517203,128.46,128.41,10.67817203]
[1742194442466,10.61517203,128.46,128.42,6.6468]
[1742194442667,10.61517203,128.45,128.42,6.6468]
[1742194443269,10.61517203,128.46,128.42,14.4332]
[1742194443459,10.61517203,128.45,128.42,14.4332]
[1742194445679,10.61517203,128.46,128.42,14.4332]
[1742194445981,10.64517203,128.47,128.43,1.6302]
[1742194447585,10.64517203,128.47,128.43,9.4161]
[1742194447880,10.61517203,128.46,128.43,9.4161]
[1742194448687,18.42907203,128.47,128.43,9.4161]
[1742194449288,10.64517203,128.47,128.43,9.4161]
[1742194449469,10.61517203,128.46,128.43,1.6302]
[1742194449676,10.61517203,128.45,128.42,6.6468]
[1742194450793,10.61517203,128.44,128.42,6.6468]
[1742194451287,10.61517203,128.43,128.41,0.063]
[1742194451791,10.61517203,128.44,128.41,0.063]
[1742194452592,10.61517203,128.44,128.41,7.8504]
[1742194452972,7.7845,128.46,128.41,7.8504]
[1742194453183,10.61517203,128.44,128.41,7.8504]
[1742194454481,10.61517203,128.44,128.41,0.063]
[1742194455192,10.64517203,128.44,128.41,0.063]
[1742194455394,18.43107203,128.44,128.41,0.063]
[1742194456889,10.64517203,128.44,128.41,0.063]
[1742194457471,0.03,128.44,128.41,10.67817203]
[1742194458477,0.03,128.44,128.41,322.67817203]
[1742194458678,0.03,128.44,128.42,7.7869]
[1742194459795,0.03,128.44,128.43,6.4634]
[1742194461089,0.03,128.44,128.43,14.2497]
[1742194461293,0.03,128.44,128.43,24.86487203]
[1742194461502,0.03,128.44,128.43,31.70487203]
[1742194461807,0.03,128.44,128.43,33.26437203]
[1742194463710,0.03,128.44,128.43,52.05618246]
[1742194465597,0.03,128.44,128.43,132.85618246]
[1742194466390,0.03,128.44,128.43,114.06437203]
[1742194466797,0.03,128.44,128.43,103.4492]
[1742194467094,0.03,128.44,128.43,95.6629]
[1742194467295,0.03,128.44,128.41,88.6503]
[1742194469584,10.64517203,128.44,128.41,0.063]
[1742194469793,10.61517203,128.43,128.41,0.063]
[1742194470594,7.8158,128.44,128.41,0.063]
[1742194470791,10.64517203,128.44,128.41,0.063]
[1742194471100,0.03,128.44,128.41,0.063]
[1742194473878,10.64517203,128.44,128.41,0.063]
[1742194475778,10.61517203,128.43,128.41,0.063]
[1742194476201,7.8161,128.44,128.41,0.063]
[1742194476394,0.03,128.44,128.41,0.063]
[1742194476593,10.64517203,128.44,128.41,0.063]
[1742194476995,18.43087203,128.44,128.41,0.063]
[1742194479113,0.03,128.44,128.41,0.063]
[1742194479320,0.03,128.44,128.41,10.67817203]
[1742194479525,0.03,128.44,128.41,17.51817203]
[1742194480517,0.03,128.44,128.42,7.7869]
[1742194480989,0.03,128.44,128.41,14.6902]
[1742194481189,10.64517203,128.44,128.41,14.6902]
[1742194481387,10.64517203,128.44,128.41,0.063]
[1742194481388,10.61517203,128.42,128.41,0.063]
[1742194481687,0.03,128.44,128.41,7.8505]
[1742194481888,0.03,128.44,128.43,10.61517203]
[1742194482495,0.03,128.44,128.43,18.40147203]
[1742194482693,0.03,128.44,128.43,20.00387203]
[1742194482897,0.03,128.44,128.43,38.79568246]
[1742194485208,0.03,128.44,128.43,28.18051043]
[1742194485414,0.03,128.44,128.43,38.79568246]
[1742194486221,0.03,128.44,128.43,119.59568246]
[1742194486590,0.03,128.44,128.43,90.1887]
[1742194488327,0.03,128.44,128.43,119.59568246]
[1742194488809,0.03,128.44,128.43,90.1887]
[1742194490530,0.03,128.44,128.43,80.8]
[1742194490817,10.64517203,128.44,128.43,80.8]
[1742194490995,0.03,128.44,128.43,80.8]
[1742194491192,0.03,128.44,128.43,88.5863]
[1742194491798,0.03,128.44,128.43,99.20147203]
[1742194492119,0.03,128.44,128.43,18.40147203]
[1742194493410,0.03,128.44,128.43,7.7863]
[1742194495011,0.03,128.44,128.43,18.40147203]
[1742194495628,0.03,128.44,128.43,7.7863]
[1742194496208,30.64517203,128.44,128.41,0.063]
[1742194496403,10.61517203,128.42,128.41,0.063]
[1742194496614,18.40207203,128.42,128.41,0.063]
[1742194503228,7.7869,128.42,128.41,0.063]
[1742194503533,18.40207203,128.42,128.41,0.063]
[1742194506038,18.5442336,128.42,128.41,0.063]
[1742194507625,18.40207203,128.42,128.41,0.063]
[1742194509241,16.59536663,128.42,128.41,0.063]
[1742194509541,0.03,128.44,128.41,0.063]
[1742194509838,16.59536663,128.43,128.41,0.063]
[1742194511140,0.03,128.44,128.41,16.65836663]
[1742194511519,0.03,128.44,128.41,0.063]
[1742194512620,0.03,128.44,128.41,7.8505]
[1742194512918,0.03,128.44,128.41,0.063]
[1742194513228,16.62536663,128.44,128.41,0.063]
[1742194514138,16.59536663,128.43,128.41,0.063]
[1742194515842,16.59536663,128.42,128.41,0.063]
[1742194517843,24.38226663,128.42,128.41,0.063]
[1742194518543,16.59536663,128.42,128.41,0.063]
[1742194519142,24.38226663,128.42,128.41,0.063]
[1742194519842,16.59536663,128.42,128.41,0.063]
[1742194520441,24.38226663,128.42,128.41,0.063]
[1742194520842,16.59536663,128.42,128.41,0.063]
[1742194522448,24.38226663,128.42,128.41,0.063]
[1742194523026,0.03,128.44,128.41,0.063]
[1742194523247,36.59536663,128.43,128.41,0.063]
[1742194523446,20.0,128.43,128.41,0.063]
[1742194524150,16.59536663,128.42,128.41,0.063]
[1742194526434,24.38226663,128.42,128.41,0.063]
[1742194529139,18.40840383,128.42,128.41,0.063]
[1742194534958,18.5505654,128.42,128.41,0.063]
[1742194535940,79.82839115,128.42,128.41,0.063]
[1742194538444,20.0,128.39,128.38,0.063]
[1742194538748,30.62150383,128.39,128.38,0.063]
[1742194540460,38.41020383,128.39,128.38,0.063]
[1742194548572,63.56122369,128.39,128.38,0.063]
[1742194549257,20.0,128.41,128.38,0.063]
[1742194549464,10.62150383,128.4,128.38,0.063]
[1742194550662,10.62150383,128.39,128.38,0.063]
[1742194551261,30.62150383,128.4,128.38,0.063]
[1742194551646,10.62150383,128.39,128.38,0.063]
[1742194552355,20.0,128.4,128.38,0.063]
[1742194552543,30.62150383,128.4,128.38,0.063]
[1742194553166,38.40960383,128.4,128.38,0.063]
[1742194553776,10.62150383,128.39,128.38,0.063]
[1742194555963,18.41020383,128.39,128.38,0.063]
[1742194557868,7.7887,128.39,128.38,0.063]
[1742194558042,18.41020383,128.39,128.38,0.063]
[1742194558659,0.03,128.41,128.38,0.063]
[1742194558862,20.03,128.41,128.38,0.063]
[1742194560484,10.62150383,128.4,128.38,0.063]
[1742194561386,10.62150383,128.39,128.38,0.063]
[1742194562481,18.41020383,128.39,128.38,0.063]
[1742194564388,0.03,128.41,128.38,0.063]
[1742194567084,10.65150383,128.41,128.38,0.063]
[1742194572678,10.62150383,128.4,128.38,0.063]
[1742194574093,10.62150383,128.39,128.38,0.063]
[1742194575897,10.62150383,128.4,128.38,0.063]
[1742194577076,10.62150383,128.39,128.38,0.063]
[1742194579984,18.5523654,128.39,128.38,0.063]
[1742194581394,44.16417583,128.39,128.38,0.063]
[1742194582777,18.5523654,128.39,128.38,0.063]
[1742194582978,7.7887,128.39,128.38,0.063]
[1742194583179,10.62150383,128.39,128.38,0.063]
[1742194583801,18.40970383,128.4,128.38,0.063]
[1742194584100,10.65150383,128.41,128.38,0.063]
[1742194588391,0.03,128.41,128.38,0.063]
[1742194588697,10.65150383,128.41,128.38,0.063]
[1742194589095,0.03,128.41,128.38,12.30720383]
[1742194590090,0.03,128.41,128.38,1.6857]
[1742194590481,0.03,128.41,128.38,9.4749]
[1742194591901,0.03,128.41,128.38,1.6857]
[1742194592401,0.03,128.41,128.38,9.4748]
[1742194595299,10.65150383,128.41,128.38,9.4748]
[1742194595494,10.65150383,128.41,128.38,1.6857]
[1742194595884,0.03,128.41,128.38,1.6857]
[1742194596202,10.62150383,128.4,128.38,1.6857]
[1742194596702,18.43910383,128.41,128.38,1.6857]
[1742194597997,10.62150383,128.4,128.38,1.6857]
[1742194598691,18.40960383,128.4,128.38,1.6857]
[1742194605980,7.8177,128.41,128.38,1.6857]
[1742194606185,18.43920383,128.41,128.38,1.6857]
[1742194606497,30.62150383,128.39,128.38,0.063]
[1742194608102,38.41020383,128.39,128.38,0.063]
[1742194608883,38.5523654,128.39,128.38,0.063]
[1742194609506,27.7887,128.39,128.38,0.063]
[1742194609692,38.41020383,128.39,128.38,0.063]
[1742194613492,38.5523654,128.39,128.38,0.063]
[1742194614100,57.34417583,128.39,128.38,0.063]
[1742194616213,64.16417583,128.39,128.38,0.063]
[1742194617003,20.0,128.35,128.34,0.063]
[1742194617210,30.7636654,128.35,128.34,0.063]
[1742194618205,38.5547654,128.35,128.34,0.063]
[1742194618606,57.34657583,128.35,128.34,0.063]
[1742194618805,57.34657583,128.35,128.29,6.0252]
[1742194618806,126.13049115,128.35,128.29,6.0252]
[1742194619008,10.62150383,128.31,128.29,6.0252]
[1742194619312,72.88081043,128.35,128.29,6.0252]
[1742194619313,10.62150383,128.32,128.29,6.0252]
[1742194620304,18.41410383,128.33,128.29,6.0252]
[1742194620514,10.62150383,128.32,128.29,6.0252]
[1742194621416,20.0,128.34,128.29,24.44140383]
[1742194621599,20.0,128.34,128.3,10.62150383]
[1742194621996,30.62150383,128.34,128.29,24.44140383]
[1742194622313,38.41350383,128.34,128.29,16.64670383]
[1742194622614,30.62150383,128.34,128.29,24.44150383]
[1742194622811,10.62150383,128.36,128.33,6.5534]
[1742194623013,20.0,128.35,128.33,6.5534]
[1742194623307,10.62150383,128.37,128.33,6.5534]
[1742194624318,10.62150383,128.37,128.33,14.3455]
[1742194624848,18.41150383,128.37,128.33,6.5534]
[1742194624991,10.62150383,128.36,128.33,6.5534]
[1742194625413,10.62150383,128.35,128.33,6.5534]
[1742194627537,18.41280383,128.35,128.33,6.5534]
[1742194629614,10.62150383,128.34,128.32,1.5719]
[1742194629929,10.62150383,128.33,128.3,6.5534]
[1742194631509,18.41280383,128.35,128.3,24.96910383]
[1742194631738,10.62150383,128.35,128.3,24.96910383]
[1742194634220,10.65150383,128.35,128.3,24.96910383]
[1742194635436,18.44270383,128.35,128.3,24.96910383]
[1742194637539,10.62150383,128.34,128.3,14.3476]
[1742194638318,10.62150383,128.34,128.3,6.5534]
[1742194638518,10.62150383,128.33,128.3,6.5534]
[1742194639508,10.62150383,128.31,128.3,6.5534]
[1742194640243,10.62150383,128.31,128.29,1.5719]
[1742194640451,10.62150383,128.3,128.29,1.5719]
[1742194641039,10.62150383,128.3,128.28,0.063]
[1742194641248,18.41630383,128.29,128.28,0.063]
[1742194641614,10.62150383,128.31,128.28,0.063]
[1742194642538,7.793,128.32,128.28,0.063]
[1742194642539,10.62150383,128.32,128.28,0.063]
[1742194642846,18.41330383,128.34,128.29,10.62150383]
[1742194643547,18.41330383,128.34,128.29,18.41630383]
[1742194644659,10.65150383,128.35,128.3,10.62150383]
[1742194644822,10.65150383,128.35,128.32,6.2683]
[1742194645662,18.44270383,128.35,128.32,6.2683]
[1742194646458,10.65150383,128.35,128.32,6.2683]
[1742194647964,18.44270383,128.35,128.32,6.2683]
[1742194648531,10.62150383,128.34,128.32,6.2683]
[1742194648745,10.65150383,128.35,128.32,14.061]
[1742194648932,0.03,128.35,128.32,14.061]
[1742194654872,0.03,128.35,128.32,6.2683]
[1742194655255,0.03,128.35,128.32,24.68250383]
[1742194658158,0.03,128.35,128.33,10.62150383]
[1742194658857,10.65150383,128.35,128.32,6.2683]
[1742194659055,0.03,128.35,128.32,6.2683]
[1742194659361,0.03,128.35,128.32,14.0612]
[1742194661065,0.03,128.35,128.32,6.2683]
[1742194663267,10.65150383,128.35,128.32,6.2683]
[1742194663769,7.8212,128.35,128.32,6.2683]
[1742194665246,0.03,128.35,128.32,14.0613]
[1742194665464,0.03,128.35,128.32,6.2683]
[1742194668973,18.44290383,128.35,128.32,6.2683]
[1742194669173,20.0,128.31,128.28,0.063]
[1742194669377,10.62150383,128.3,128.28,0.063]
[1742194671252,18.41620383,128.3,128.28,0.063]
[1742194673378,7.7947,128.3,128.28,0.063]
[1742194673578,18.41620383,128.3,128.28,0.063]
[1742194673965,19.4836,128.32,128.28,0.063]
[1742194673966,7.792,128.34,128.28,10.68450383]
[1742194674273,10.62150383,128.34,128.29,17.00630383]
[1742194674462,18.44290383,128.35,128.3,10.62150383]
[1742194675278,10.62150383,128.34,128.29,24.80080383]
[1742194675668,18.41330383,128.34,128.29,24.80080383]
[1742194677358,10.62150383,128.34,128.29,24.80080383]
[1742194679371,10.62150383,128.34,128.3,1.5125]
[1742194681385,10.62150383,128.34,128.31,7.7936]
[1742194681991,18.41350383,128.34,128.3,1.5125]
[1742194682284,10.62150383,128.33,128.3,1.5125]
[1742194683671,10.62150383,128.32,128.3,1.5125]
[1742194683874,10.62150383,128.31,128.29,6.3848]
[1742194684290,10.62150383,128.32,128.29,6.3848]
[1742194684667,10.62150383,128.31,128.29,6.3848]
[1742194684904,10.62150383,128.3,128.29,6.3848]
[1742194685094,10.62150383,128.3,128.28,0.063]
[1742194685795,10.62150383,128.29,128.28,0.063]
[1742194687592,18.41630383,128.29,128.28,0.063]
[1742194691095,18.5584654,128.29,128.28,0.063]
[1742194692299,18.41630383,128.29,128.28,0.063]
[1742194692599,18.41580383,128.3,128.28,0.063]
[1742194693276,10.62150383,128.3,128.28,0.063]
[1742194693488,10.62150383,128.32,128.28,0.063]
[1742194693671,10.62150383,128.32,128.28,10.68450383]
[1742194693869,10.62150383,128.32,128.28,0.063]
[1742194694891,7.7924,128.33,128.28,0.063]
[1742194695088,10.62150383,128.32,128.28,0.063]
[1742194695469,7.7924,128.33,128.28,0.063]
[1742194695665,10.62150383,128.32,128.28,0.063]
[1742194695883,0.03,128.35,128.3,10.62150383]
[1742194696087,10.65150383,128.35,128.3,10.62150383]
[1742194696287,0.03,128.35,128.31,10.62150383]
[1742194697493,10.65150383,128.35,128.3,17.44150383]
[1742194698470,10.65150383,128.35,128.31,7.7936]
[1742194698669,10.65150383,128.35,128.31,18.41510383]
[1742194698670,0.03,128.35,128.31,18.41510383]
[1742194699478,0.03,128.35,128.32,6.6156]
[1742194699972,10.65150383,128.35,128.32,6.6156]
[1742194700977,10.65150383,128.35,128.32,14.4085]
[1742194701173,0.03,128.35,128.32,14.4085]
[1742194701373,0.03,128.35,128.33,10.62150383]
[1742194702885,0.03,128.35,128.32,14.4085]
[1742194702886,0.03,128.35,128.32,14.4083]
[1742194703895,10.65150383,128.35,128.32,6.6156]
[1742194704903,18.44290383,128.35,128.32,6.6156]
[1742194705099,10.62150383,128.34,128.32,6.6156]
[1742194705495,30.65150383,128.35,128.32,14.4086]
[1742194705799,30.65150383,128.35,128.32,6.6156]
[1742194706288,30.65150383,128.35,128.32,14.4085]
[1742194707415,0.03,128.35,128.32,14.4085]
[1742194707980,0.03,128.35,128.32,25.03000383]
[1742194709396,0.03,128.35,128.32,14.4085]
[1742194715311,0.03,128.35,128.34,1.625]
[1742194719119,0.03,128.35,128.34,9.4168]
[1742194720018,0.03,128.41,128.35,0.14216157]
[1742194720303,0.03,128.41,128.4,10.62150383]
[1742194721296,0.03,128.41,128.39,19.06650383]
[1742194721809,0.03,128.41,128.4,18.40960383]
[1742194722014,0.03,128.41,128.4,10.62150383]
[1742194722195,0.03,128.41,128.39,19.06650383]
[1742194723814,0.03,128.41,128.4,29.41331426]
[1742194724106,0.03,128.41,128.39,19.06650383]
[1742194726620,0.03,128.41,128.4,29.55547583]
[1742194727199,0.03,128.41,128.4,37.34357583]
[1742194727595,0.03,128.41,128.4,37.05925269]
[1742194727914,0.03,128.41,128.4,29.27115269]
[1742194728218,0.03,128.41,128.4,37.05925269]
[1742194729017,0.03,128.41,128.4,349.05925269]
[1742194729312,0.03,128.43,128.41,0.14216157]
[1742194729502,0.03,128.43,128.42,10.7636654]
[1742194730510,0.03,128.43,128.42,10.62150383]
[1742194730815,0.03,128.43,128.42,29.27115269]
[1742194731396,0.03,128.43,128.42,37.05805269]
[1742194732617,0.03,128.43,128.42,37.20021426]
[1742194734016,0.03,128.43,128.42,37.34237583]
[1742194735105,0.03,128.43,128.42,349.34237583]
[1742194736223,0.03,128.43,128.42,37.34237583]
[1742194739302,0.03,128.43,128.42,349.34237583]
[1742194739502,0.03,128.43,128.42,37.20021426]
[1742194740414,0.03,128.43,128.42,26.57871043]
[1742194740723,0.03,128.43,128.42,18.64964886]
[1742194741310,0.03,128.43,128.42,99.44964886]
[1742194741914,0.03,128.43,128.42,107.23654886]
[1742194742209,0.03,128.43,128.42,99.44964886]
[1742194743012,0.03,128.43,128.42,107.23654886]
[1742194743324,0.03,128.43,128.42,99.44964886]
[1742194744111,0.03,128.43,128.42,80.8]
[1742194744720,10.65150383,128.43,128.39,101.07464886]
[1742194744951,10.65150383,128.43,128.39,99.44964886]
[1742194745311,0.03,128.43,128.39,117.85975269]
[1742194746528,10.65150383,128.43,128.39,99.44964886]
[1742194748231,18.43830383,128.43,128.39,107.23824886]
[1742194748834,10.65150383,128.43,128.39,107.23824886]
[1742194750232,18.43790383,128.43,128.39,99.44964886]
[1742194752131,18.43790383,128.43,128.39,80.8]
[1742194752333,10.62150383,128.42,128.39,80.8]
[1742194753834,10.62150383,128.42,128.38,0.063]
[1742194754011,7.8164,128.43,128.38,0.063]
[1742194754012,10.62150383,128.41,128.38,0.063]
[1742194754417,18.40930383,128.41,128.38,0.063]
[1742194755438,10.62150383,128.41,128.38,0.063]
[1742194755654,18.40870383,128.42,128.38,0.063]
[1742194758749,10.62150383,128.41,128.38,0.063]
[1742194759131,10.62150383,128.4,128.38,0.063]
[1742194759330,10.62150383,128.39,128.38,0.063]
[1742194760922,18.41020383,128.39,128.38,0.063]
[1742194768334,24.60558904,128.39,128.38,0.063]
[1742194768661,18.5523654,128.39,128.38,0.063]
[1742194770060,24.86236461,128.39,128.38,0.063]
[1742194770843,18.5523654,128.39,128.38,0.063]
[1742194772445,18.69452697,128.39,128.38,0.063]
[1742194774549,24.84726956,128.39,128.38,0.063]
[1742194796275,43.49691842,128.39,128.38,0.063]
[1742194796570,30.7636654,128.36,128.35,0.063]
[1742194798166,30.62150383,128.36,128.35,0.063]
[1742194798360,38.41200383,128.36,128.35,0.063]
[1742194798669,30.62150383,128.36,128.35,0.063]
[1742194799171,10.62150383,128.37,128.36,6.0446]
[1742194799846,10.82713081,128.41,128.36,6.0446]
[1742194800052,10.62150383,128.4,128.37,1.6157]
[1742194800465,10.65150383,128.41,128.37,12.23720383]
[1742194800669,10.62150383,128.4,128.37,9.4055]
[1742194800969,10.62150383,128.39,128.37,1.6157]
[1742194801579,30.62150383,128.38,128.37,1.6157]
[1742194802573,38.41080383,128.38,128.37,1.6157]
[1742194802878,38.41080383,128.38,128.36,6.0446]
[1742194803175,10.62150383,128.37,128.35,0.063]
[1742194803477,10.62150383,128.36,128.35,0.063]
[1742194803869,10.62150383,128.37,128.35,0.063]
[1742194804070,10.62150383,128.36,128.35,0.063]
[1742194805859,10.62150383,128.37,128.35,0.063]
[1742194806058,3.8445624,128.39,128.35,0.063]
[1742194806256,10.62150383,128.39,128.35,0.063]
[1742194806575,10.62150383,128.4,128.36,10.62150383]
[1742194806779,10.65150383,128.41,128.37,7.7899]
[1742194807665,10.62150383,128.4,128.36,15.5503]
[1742194807878,10.62150383,128.4,128.36,7.76]
[1742194808062,10.62150383,128.37,128.36,7.76]
[1742194809180,18.41140383,128.37,128.36,7.76]
[1742194809478,18.41140383,128.37,128.35,0.063]
[1742194809690,10.62150383,128.36,128.35,0.063]
[1742194809982,20.0,128.36,128.35,0.063]
[1742194810193,30.62150383,128.36,128.35,0.063]
[1742194811583,38.41200383,128.36,128.35,0.063]
[1742194812890,38.5541654,128.36,128.35,0.063]
[1742194813380,38.69632697,128.36,128.35,0.063]
[1742194813975,38.41200383,128.36,128.35,0.063]
[1742194814366,30.62150383,128.36,128.35,0.063]
[1742194815188,10.62150383,128.38,128.35,0.063]
[1742194815393,10.62150383,128.38,128.35,1.5939]
[1742194815768,18.41080383,128.38,128.35,1.5939]
[1742194815962,18.41080383,128.38,128.35,0.063]
[1742194816176,30.7636654,128.36,128.35,0.063]
[1742194816962,37.70582697,128.36,128.35,0.063]
[1742194817688,37.5636654,128.36,128.35,0.063]
[1742194817878,30.62150383,128.36,128.35,0.063]
[1742194818079,20.0,128.36,128.35,6.2921]
[1742194818768,38.41170383,128.37,128.35,6.2921]
[1742194820069,10.62150383,128.36,128.35,6.2921]
[1742194821369,18.41200383,128.36,128.35,6.2921]
[1742194823379,30.62150383,128.37,128.35,6.2921]
[1742194823577,20.0,128.37,128.35,7.8556]
[1742194824173,20.0,128.37,128.35,15.6467]
[1742194824689,0.03,128.39,128.35,15.6467]
[1742194825002,0.03,128.39,128.36,10.62150383]
[1742194825303,0.03,128.41,128.39,1.5635]
[1742194829478,0.03,128.41,128.39,9.3522]
[1742194829779,0.03,128.41,128.39,1.5635]
[1742194830672,10.65150383,128.41,128.39,1.5635]
[1742194830886,38.40960383,128.4,128.39,1.5635]
[1742194831103,38.40960383,128.4,128.35,1.6265]
[1742194831277,10.62150383,128.37,128.35,1.6265]
[1742194831680,10.62150383,128.38,128.35,1.6265]
[1742194832100,10.62150383,128.37,128.35,1.6265]
[1742194832897,18.41150383,128.37,128.35,1.6265]
[1742194833286,7.7896,128.38,128.35,1.6265]
[1742194833480,18.41110383,128.38,128.35,1.6265]
[1742194833682,10.62150383,128.37,128.35,1.6265]
[1742194834902,10.62150383,128.39,128.35,1.6265]
[1742194835081,10.62150383,128.39,128.35,9.4173]
[1742194835591,7.7885,128.4,128.35,1.6265]
[1742194835800,18.41000383,128.4,128.35,20.03910383]
[1742194835975,10.62150383,128.4,128.35,20.03910383]
[1742194837177,0.03,128.41,128.37,10.62150383]
[1742194837393,0.03,128.41,128.39,6.0821]
[1742194838179,0.03,128.41,128.4,10.62150383]
[1742194838383,0.03,128.41,128.4,12.13750383]
[1742194838911,0.03,128.41,128.4,30.92931426]
[1742194839203,0.03,128.43,128.41,18.64964886]
[1742194839388,0.03,128.43,128.42,10.62150383]
[1742194840198,0.03,128.43,128.41,116.87115269]
[1742194841608,0.03,128.43,128.42,29.27115269]
[1742194843289,0.03,128.43,128.42,37.05805269]
[1742194843895,0.03,128.43,128.42,29.27115269]
[1742194844102,0.03,128.43,128.42,18.64964886]
[1742194846907,0.03,128.43,128.42,99.44964886]
[1742194847511,0.03,128.43,128.42,124.08231426]
[1742194847799,0.03,128.44,128.43,20.30781043]
[1742194848026,0.03,128.44,128.43,32.09666702]
[1742194848501,0.03,128.44,128.43,112.89666702]
[1742194848886,0.03,128.44,128.43,120.68296702]
[1742194850813,0.03,128.44,128.43,432.68296702]
[1742194851016,0.03,128.44,128.43,431.51561426]
[1742194853916,0.03,128.44,128.43,431.65777583]
[1742194854290,0.03,128.47,128.44,0.14216157]
[1742194854496,0.03,128.47,128.46,10.7636654]
[1742194855324,0.03,128.47,128.46,116.85677583]
[1742194855902,0.03,128.47,128.46,124.64127583]